bitfinex/quotes_ETHUSD_20251015
["timestamp","ask_amount","ask_price","bid_price","bid_amount"]
[1760552376475,0.001,3991.2,3991.1,0.2936]
[1760552376976,0.001,3991.2,3991.1,2.7991749]
[1760552377463,0.001,3991.2,3991.1,0.2936]
[1760552377672,0.001,3991.2,3990.4,0.6336]
[1760552377842,0.001,3991.2,3990.9,0.1248]
[1760552378666,0.4298,3991.1,3990.3,0.002]
[1760552378979,0.1248,3991.0,3990.3,2.63286995]
[1760552379328,0.1248,3991.0,3990.3,0.1268]
[1760552379668,0.001,3991.2,3990.6,2.50588839]
[1760552379873,0.001,3991.2,3990.7,2.50580679]
[1760552380095,2.50575217,3990.9,3990.3,0.002]
[1760552380295,2.50576325,3990.8,3990.3,0.002]
[1760552380795,0.2309,3990.9,3990.3,2.50803468]
[1760552381210,0.2309,3990.9,3990.3,0.002]
[1760552381357,0.001,3991.2,3990.5,0.6336]
[1760552381558,0.001,3991.2,3990.4,0.6336]
[1760552381786,2.50558515,3991.1,3990.5,2.50594168]
[1760552381986,2.50655879,3991.2,3990.5,2.50594168]
[1760552382301,2.50559903,3991.1,3990.4,2.50601443]
[1760552382800,0.4493,3991.0,3990.3,0.002]
[1760552383002,2.95496122,3991.0,3990.3,2.50806058]
[1760552383174,0.2116,3990.9,3990.3,2.50806058]
[1760552383495,0.2116,3990.9,3990.4,2.50601095]
[1760552383734,0.001,3991.2,3990.5,2.5059004]
[1760552383873,2.5065657,3991.2,3990.5,2.5059004]
[1760552384071,2.50653191,3991.2,3990.5,2.5059004]
[1760552384490,2.50558027,3991.1,3990.6,0.02505888]
[1760552384891,2.50558027,3991.1,3990.5,2.5059004]
[1760552385087,2.50564341,3991.0,3990.3,2.50806909]
[1760552385300,2.50559902,3991.1,3990.4,2.50600208]
[1760552385867,2.50652584,3991.2,3990.3,2.50806105]
[1760552386069,2.50574961,3990.9,3990.3,0.002]
[1760552386264,2.50574961,3990.9,3990.3,2.50806176]
[1760552386464,2.50564391,3991.0,3990.3,2.50806176]
[1760552386894,2.50570694,3990.9,3990.3,2.50806176]
[1760552387294,2.50571179,3990.9,3990.3,0.002]
[1760552387521,2.50571179,3990.9,3990.3,2.50806168]
[1760552387833,2.50566029,3991.0,3990.3,2.50806168]
[1760552388627,2.95583305,3991.2,3990.5,2.50590815]
[1760552388990,2.50653305,3991.2,3990.5,2.50590815]
[1760552389433,0.1248,3991.0,3990.5,2.50590815]
[1760552389637,0.001,3991.2,3990.7,2.50582604]
[1760552389787,0.001,3991.2,3990.7,0.1248]
[1760552389987,0.001,3991.2,3990.9,2.5056471]
[1760552390203,2.50651638,3991.2,3990.7,0.1248]
[1760552390922,2.50651638,3991.2,3990.7,2.6305912]
[1760552390923,0.001,3991.2,3990.7,2.6305912]
[1760552391297,0.001,3991.2,3991.0,2.50563493]
[1760552391617,0.001,3991.2,3990.9,2.50568252]
[1760552392018,0.001,3991.2,3990.8,2.50575476]
[1760552392938,0.001,3991.2,3990.7,0.1248]
[1760552393436,0.001,3991.2,3990.7,2.63061826]
[1760552393834,0.001,3991.2,3990.7,0.1248]
[1760552394135,2.95487812,3991.1,3990.7,0.1248]
[1760552394337,2.95491667,3991.1,3990.7,0.1248]
[1760552394542,0.4493,3991.1,3990.7,0.1248]
[1760552395306,2.95490196,3991.1,3990.7,0.1248]
[1760552395647,0.4493,3991.0,3990.7,0.1248]
[1760552395815,0.001,3991.2,3990.7,2.63057836]
[1760552396015,0.001,3991.2,3990.7,0.5699]
[1760552396271,0.001,3991.2,3990.9,2.50568736]
[1760552396400,0.001,3991.2,3991.0,2.50563663]
[1760552396601,0.001,3991.2,3990.9,0.4451]
[1760552396909,0.001,3991.2,3991.1,0.1688]
[1760552399446,0.001,3991.2,3990.8,0.1248]
[1760552399630,0.001,3991.2,3990.9,2.50568051]
[1760552399832,0.001,3991.2,3990.8,2.63054878]
[1760552400234,0.001,3991.2,3990.8,0.1248]
[1760552400831,0.001,3991.2,3991.0,2.50562744]
[1760552401137,0.001,3991.2,3991.1,2.69943064]
[1760552401337,0.001,3991.2,3991.1,3.3079749]
[1760552401529,0.001,3991.2,3991.1,5.6058749]
[1760552401914,0.001,3991.2,3991.1,8.1488749]
[1760552402114,0.001,3991.2,3991.1,5.6058749]
[1760552402320,0.001,3991.2,3991.1,6.44778638]
[1760552402878,0.001,3991.2,3991.1,8.99078638]
[1760552403192,0.001,3991.2,3991.1,6.44778638]
[1760552403485,0.001,3991.2,3991.1,1.8528]
[1760552403848,0.001,3991.2,3991.1,4.3583749]
[1760552404667,0.001,3991.2,3991.1,5.63093064]
[1760552404865,0.001,3991.2,3991.1,5.6058749]
[1760552407679,0.001,3991.2,3991.1,5.4810749]
[1760552407887,0.001,3991.2,3991.1,6.87546162]
[1760552408090,0.001,3991.2,3991.1,7.32056162]
[1760552409385,0.001,3991.2,3991.1,14.17788904]
[1760552410093,0.001,3991.2,3991.1,10.13532533]
[1760552410262,0.001,3991.2,3991.1,14.17788904]
[1760552410968,0.001,3991.2,3991.1,10.30412533]
[1760552411174,0.001,3991.2,3991.1,13.73278904]
[1760552411575,0.001,3991.2,3990.8,2.9891]
[1760552411576,0.001,3991.2,3990.8,0.002]
[1760552411778,0.2186,3990.9,3990.8,0.002]
[1760552411975,0.6776,3990.9,3990.8,0.002]
[1760552412174,0.6776,3990.9,3990.8,2.50776325]
[1760552412375,0.6776,3990.9,3990.8,0.002]
[1760552413401,0.001,3991.2,3990.8,0.002]
[1760552413588,0.001,3991.2,3991.1,3.42866371]
[1760552413970,0.46,3991.2,3991.1,3.42866371]
[1760552414364,0.46,3991.2,3990.8,5.93641988]
[1760552414692,0.2186,3990.9,3990.8,5.93641988]
[1760552414893,0.001,3991.2,3990.8,3.43066371]
[1760552415095,0.001,3991.2,3991.1,3.42866371]
[1760552415469,0.001,3991.2,3990.8,2.50774341]
[1760552415672,0.001,3991.2,3990.9,2.53075746]
[1760552415871,0.001,3991.2,3991.1,2.5055749]
[1760552416187,0.001,3991.2,3991.1,3.1391749]
[1760552417701,0.001,3991.2,3991.1,3.2639749]
[1760552418509,0.001,3991.6,3991.1,16.03764035]
[1760552418808,0.001,3991.6,3991.5,3.26372381]
[1760552418996,0.001,3991.6,3991.5,4.59071113]
[1760552419173,0.001,3991.6,3991.5,7.57781113]
[1760552419572,0.001,3991.6,3991.5,6.76381113]
[1760552419804,0.001,3992.0,3991.9,13.54538248]
[1760552420206,0.001,3992.0,3991.9,15.84328248]
[1760552420404,0.001,3992.0,3991.9,17.69073799]
[1760552420606,0.001,3992.0,3991.9,20.23273799]
[1760552420807,0.001,3992.0,3991.9,6.83892828]
[1760552423809,0.001,3992.0,3991.9,7.28572828]
[1760552425603,0.4381,3992.0,3991.9,6.08052828]
[1760552425823,0.4381,3992.0,3991.9,1.728]
[1760552426125,0.4381,3992.0,3991.9,4.23307277]
[1760552426429,0.4381,3992.0,3991.9,1.728]
[1760552427530,0.4381,3992.0,3991.1,10.57750971]
[1760552427725,0.2183,3991.9,3991.2,1.75305512]
[1760552428029,0.2183,3991.9,3991.8,1.728]
[1760552428424,0.6554,3991.9,3991.6,1.728]
[1760552428626,0.2183,3991.9,3991.6,2.50523563]
[1760552429128,0.2183,3991.9,3991.7,2.50519828]
[1760552429312,0.001,3992.0,3991.8,2.50513552]
[1760552429509,0.4371,3991.9,3991.8,1.728]
[1760552429695,0.6554,3991.9,3991.7,1.728]
[1760552430261,0.6554,3991.9,3991.8,2.50513552]
[1760552430544,0.001,3992.0,3991.9,4.86667277]
[1760552430698,0.001,3992.0,3991.9,5.31347277]
[1760552430897,0.001,3992.0,3991.9,4.86667277]
[1760552431514,0.001,3992.0,3991.9,5.31347277]
[1760552431835,0.001,3992.0,3991.9,7.6690245]
[1760552433648,0.001,3992.0,3991.9,7.2222245]
[1760552434018,0.001,3992.0,3991.9,4.86667277]
[1760552435018,0.4381,3992.0,3991.9,4.86667277]
[1760552435563,0.001,3992.0,3991.9,8.29517418]
[1760552435720,0.001,3992.0,3991.9,8.41997418]
[1760552436375,0.001,3992.0,3991.9,5.28130141]
[1760552436646,0.001,3992.0,3991.9,7.78637418]
[1760552436942,0.4381,3992.0,3991.9,7.78637418]
[1760552437442,0.4381,3992.0,3991.9,1.8528]
[1760552437644,0.4381,3992.0,3991.9,0.1248]
[1760552437860,0.4381,3992.0,3991.9,2.62987277]
[1760552438147,0.4381,3992.0,3991.9,0.1248]
[1760552438547,0.001,3992.0,3991.9,3.83820453]
[1760552438715,0.001,3992.0,3991.9,4.28500453]
[1760552440204,0.001,3992.0,3991.9,3.83820453]
[1760552440708,0.001,3992.0,3991.9,3.81315381]
[1760552440911,0.001,3992.0,3991.3,1.50894301]
[1760552441066,0.2214,3991.9,3991.8,2.50513552]
[1760552441266,0.659,3991.9,3991.8,2.50513552]
[1760552442117,2.50513552,3991.8,3991.1,0.002]
[1760552442274,0.659,3991.9,3991.1,0.002]
[1760552442471,0.46262517,3991.7,3991.6,0.002]
[1760552442703,2.96782919,3991.7,3991.6,0.002]
[1760552443008,2.94279828,3991.7,3991.6,0.002]
[1760552443624,0.001,3992.0,3991.9,2.50507277]
[1760552443770,0.001,3992.0,3991.9,4.48378005]
[1760552443975,0.001,3992.0,3991.9,5.57788005]
[1760552444603,2.50193698,3997.0,3992.0,2.3616]
[1760552444806,2.50327647,3994.8,3993.8,3.13748101]
[1760552444993,2.50327647,3994.8,3993.8,4.86548101]
[1760552444994,0.4324,3994.4,3993.8,4.86548101]
[1760552445631,0.2226,3995.1,3993.8,5.60242651]
[1760552445925,0.2226,3995.1,3993.8,6.06292651]
[1760552446805,0.4324,3995.5,3993.8,6.06292651]
[1760552446806,0.2226,3995.4,3993.8,6.06292651]
[1760552447816,0.2226,3995.4,3993.8,6.19013337]
[1760552448338,0.2226,3995.4,3993.8,6.06292651]
[1760552448487,0.2226,3995.4,3993.8,6.18772651]
[1760552448822,0.2256,3994.9,3993.8,6.18772651]
[1760552449000,0.2226,3995.4,3993.8,3.6838455]
[1760552449201,0.2246,3995.7,3995.3,2.62768435]
[1760552449400,0.2246,3995.7,3995.4,2.52785775]
[1760552449712,0.2246,3995.7,3995.6,0.1248]
[1760552449910,0.6427,3995.7,3995.6,0.1248]
[1760552450321,0.6427,3995.7,3994.5,0.6336]
[1760552450619,0.4181,3995.6,3995.3,0.1248]
[1760552450808,2.50312958,3995.0,3993.7,1.728]
[1760552451014,0.6508,3994.9,3994.7,0.1248]
[1760552451187,0.4294,3994.8,3993.3,0.12823943]
[1760552451385,2.50337102,3994.7,3994.4,0.1248]
[1760552451590,0.4294,3994.6,3994.4,0.1248]
[1760552452001,0.4294,3994.5,3994.4,0.1248]
[1760552452199,0.6508,3994.9,3993.0,12.82693908]
[1760552452399,0.6508,3994.9,3994.4,0.1248]
[1760552452400,2.50342656,3994.6,3994.4,0.1248]
[1760552452602,0.2214,3994.9,3994.4,0.1248]
[1760552452603,0.4294,3994.5,3994.4,0.1248]
[1760552453023,0.2214,3994.9,3994.4,0.1248]
[1760552453224,0.4294,3994.8,3994.4,0.1248]
[1760552453523,0.4294,3994.8,3994.7,0.1248]
[1760552454313,0.4294,3994.8,3994.4,0.1248]
[1760552454633,0.4294,3994.7,3994.4,0.1248]
[1760552454793,0.4294,3994.6,3994.4,0.1248]
[1760552455209,2.50356139,3994.4,3994.1,0.1248]
[1760552455433,0.4294,3994.3,3994.1,0.1248]
[1760552455593,0.1248,3994.8,3994.1,0.1248]
[1760552455594,0.4294,3994.2,3994.1,0.1248]
[1760552455798,0.4294,3994.2,3993.1,3.02328741]
[1760552455799,0.4294,3994.2,3993.8,0.1248]
[1760552455998,0.2214,3993.9,3993.8,0.1248]
[1760552456526,0.5542,3994.5,3993.8,0.1248]
[1760552456728,0.5542,3994.5,3993.8,1.8528]
[1760552457030,3.0576962,3994.5,3993.8,0.1248]
[1760552457547,0.1248,3994.5,3994.4,15.11551405]
[1760552457841,0.2246,3995.7,3994.5,4.23144223]
[1760552457996,0.2246,3995.7,3994.4,10.69210915]
[1760552457997,0.2246,3995.7,3995.2,2.5029533]
[1760552458197,0.2246,3995.7,3995.3,2.50294095]
[1760552458623,0.6583,3995.7,3995.3,2.50294095]
[1760552459339,0.2246,3995.7,3994.6,0.6336]
[1760552459554,0.6583,3995.7,3995.1,2.50305881]
[1760552459724,2.93650463,3995.6,3994.7,1.728]
[1760552459929,2.93650463,3995.6,3994.9,2.50314949]
[1760552460127,0.4337,3995.6,3994.9,2.50314949]
[1760552460334,0.4337,3995.6,3994.5,0.6336]
[1760552460503,0.4337,3995.6,3995.2,2.50299014]
[1760552460936,0.4337,3995.5,3995.2,2.50299014]
[1760552461140,0.2256,3995.7,3995.3,0.0250294]
[1760552461141,0.001,3995.7,3995.3,0.0250294]
[1760552461353,0.001,3995.7,3995.5,2.50281566]
[1760552461517,0.001,3995.7,3995.6,2.50275302]
[1760552461710,0.001,3995.7,3995.5,2.50281448]
[1760552461945,0.001,3995.7,3995.2,0.6336]
[1760552462128,0.001,3995.7,3995.5,2.50280857]
[1760552462437,0.001,3995.7,3995.2,0.6336]
[1760552462660,0.001,3995.7,3995.5,2.5027966]
[1760552463540,0.001,3995.7,3995.6,2.50275302]
[1760552465033,0.001,3995.7,3995.6,3.66194305]
[1760552465251,0.001,3995.7,3995.6,5.83901552]
[1760552467638,0.001,3995.7,3995.6,5.36491552]
[1760552467832,0.001,3995.7,3995.6,5.48971552]
[1760552468653,0.52311359,3999.9,3995.8,2.50262775]
[1760552468654,0.4716,3998.3,3995.8,2.50262775]
[1760552468858,0.4716,3998.3,3997.6,2.50144838]
[1760552469169,0.4716,3998.3,3997.3,3.13526515]
[1760552469329,2.97267082,3998.3,3997.3,3.13526515]
[1760552469533,0.4716,3998.3,3997.4,2.50162605]
[1760552469829,2.97269004,3998.3,3997.5,2.50155682]
[1760552470019,0.02502517,3997.9,3996.4,0.1925]
[1760552470359,0.4709,3997.9,3996.7,1.728]
[1760552470565,0.4709,3997.9,3996.4,1.728]
[1760552470566,0.1866,3996.8,3996.4,1.728]
[1760552470870,0.1866,3996.8,3996.2,1.728]
[1760552470871,0.6579,3996.8,3996.2,1.728]
[1760552471160,0.6579,3996.8,3995.6,1.0994625]
[1760552471161,0.6579,3996.8,3995.6,0.9746625]
[1760552471335,2.50211694,3996.7,3995.8,2.50258438]
[1760552471551,2.50211694,3996.7,3996.0,2.50248342]
[1760552471762,3.15991854,3996.8,3996.0,2.50248342]
[1760552471945,2.50206841,3996.7,3996.0,0.6336]
[1760552472281,2.50251026,3996.0,3995.1,2.50303836]
[1760552472583,2.50251026,3996.0,3994.4,0.1203]
[1760552472584,0.6959,3995.9,3994.4,0.1203]
[1760552472766,0.02502517,3995.8,3994.5,1.14769027]
[1760552472964,0.2218,3994.6,3994.1,2.50366433]
[1760552473161,0.2218,3994.6,3993.9,0.002]
[1760552473162,0.693,3994.6,3993.9,0.002]
[1760552473968,0.693,3994.6,3994.1,1.728]
[1760552474177,0.693,3994.6,3994.2,0.0250363]
[1760552474479,0.693,3994.6,3993.9,0.002]
[1760552474688,0.4716,3996.5,3995.2,0.6336]
[1760552474974,0.2218,3996.4,3995.5,2.50281566]
[1760552475178,0.2218,3996.4,3995.8,2.5026248]
[1760552475382,0.2218,3996.4,3995.9,2.52758199]
[1760552475548,0.2218,3996.4,3995.9,0.02502565]
[1760552475755,2.50194343,3996.9,3996.1,2.50241092]
[1760552476262,0.6939,3997.0,3996.3,2.50225962]
[1760552476467,0.6939,3997.0,3996.4,0.02502252]
[1760552476663,0.6939,3997.0,3996.4,2.50224513]
[1760552476863,0.6939,3997.0,3996.6,2.50207792]
[1760552477249,0.6939,3997.0,3996.7,0.02502064]
[1760552477451,0.6939,3997.0,3996.6,2.50207792]
[1760552477452,0.2198,3997.0,3996.6,2.50207792]
[1760552478176,0.2198,3997.0,3996.6,2.50211962]
[1760552478381,0.2198,3997.0,3996.7,0.02502064]
[1760552478581,0.2198,3997.0,3996.6,2.50211962]
[1760552478954,2.50113641,3998.2,3997.2,2.50169689]
[1760552479151,2.50093794,3998.5,3997.4,0.6336]
[1760552479152,0.4693,3998.5,3997.4,0.6336]
[1760552479366,2.97029729,3998.5,3997.5,2.52652765]
[1760552479573,2.97029729,3998.5,3997.6,2.5014831]
[1760552479752,2.97029729,3998.5,3997.6,2.5015009]
[1760552479978,0.001,3997.8,3997.6,2.5014882]
[1760552480357,0.001,3997.8,3997.7,2.50143832]
[1760552482106,0.001,3997.8,3997.0,1.728]
[1760552482412,0.457,3997.8,3997.4,2.50162558]
[1760552482609,0.457,3997.8,3997.2,2.3616]
[1760552482777,0.001,3997.8,3997.0,0.6336]
[1760552483107,0.001,3997.8,3997.5,2.50151712]
[1760552483605,2.50150421,3997.6,3996.2,0.4408]
[1760552483909,0.456,3997.5,3996.7,2.50204717]
[1760552484068,0.456,3997.5,3996.8,1.728]
[1760552484268,0.456,3997.5,3996.9,2.50189252]
[1760552484568,0.456,3997.5,3997.0,2.50183096]
[1760552484772,0.456,3997.4,3996.9,2.50192121]
[1760552485102,0.456,3997.4,3997.0,2.50185649]
[1760552485285,0.456,3997.4,3997.1,2.50181375]
[1760552485488,2.95838968,3997.8,3997.1,2.50181375]
[1760552485692,0.001,3997.8,3997.3,2.50168863]
[1760552485863,0.001,3997.8,3997.5,2.50154974]
[1760552486063,0.001,3997.8,3997.6,2.50149017]
[1760552486704,0.001,3997.8,3997.5,2.50154634]
[1760552487067,0.001,3997.8,3997.5,0.5829331]
[1760552487265,0.001,3997.8,3997.7,2.50143832]
[1760552487693,0.001,3997.8,3997.7,2.5264527]
[1760552488371,0.001,3997.8,3997.7,3.1600527]
[1760552488569,0.001,3997.8,3997.7,3.6008527]
[1760552488774,0.001,3997.8,3997.7,4.26938637]
[1760552488981,0.001,3997.8,3997.7,4.36917199]
[1760552489181,0.001,3997.8,3997.7,0.79333367]
[1760552489394,0.001,3997.8,3997.7,0.1248]
[1760552490028,2.95840103,3997.8,3997.2,0.6336]
[1760552490187,2.95840103,3997.8,3997.5,0.1248]
[1760552490504,0.456,3997.7,3997.3,0.1248]
[1760552490706,0.001,3997.8,3997.3,0.1248]
[1760552490707,0.456,3997.6,3997.3,0.1248]
[1760552491388,0.456,3997.5,3997.3,0.1248]
[1760552491709,0.456,3997.4,3997.0,0.1248]
[1760552491904,0.456,3997.4,3997.0,1.8528]
[1760552492308,0.456,3997.4,3997.0,0.1248]
[1760552492495,0.1248,3997.7,3997.6,2.5015009]
[1760552493012,0.001,3997.8,3997.7,3.13503832]
[1760552493304,0.001,3997.8,3997.7,3.57583832]
[1760552494012,0.001,3997.8,3997.7,3.13503832]
[1760552494372,0.001,3997.8,3997.7,3.6008527]
[1760552494724,0.001,3997.8,3997.7,5.92655554]
[1760552495077,0.22,4002.0,3999.5,2.50026922]
[1760552495388,0.22,4002.0,3999.6,0.0250025]
[1760552495389,0.2087,4000.3,3999.6,0.0250025]
[1760552495593,0.2087,4000.3,3999.2,0.6336]
[1760552496101,0.2087,4000.3,3999.7,2.50013831]
[1760552496275,0.2087,4000.3,3999.4,2.3616]
[1760552496517,0.2087,4000.3,3999.6,2.50022995]
[1760552497408,2.70852134,4000.3,3999.6,2.50022995]
[1760552497588,0.2087,4000.3,3999.2,0.6336]
[1760552497771,0.6,4001.3,3999.3,0.65860437]
[1760552497975,0.2087,4000.7,3999.6,0.6336]
[1760552498234,0.2087,4000.7,3999.3,1.09940437]
[1760552498235,0.2087,4000.7,3999.7,0.02500187]
[1760552498377,0.6622,4000.7,3999.9,0.6336]
[1760552498721,2.95312505,4000.6,3999.4,0.6336]
[1760552499007,2.49981664,4000.3,3999.4,3.13396815]
[1760552499219,2.95318822,4000.5,3999.6,2.50023028]
[1760552499384,2.95321646,4000.5,3999.7,2.50017451]
[1760552499586,2.49977764,4000.4,3999.6,2.5002496]
[1760552499785,2.95320102,4000.5,3999.5,2.3616]
[1760552499990,2.95320102,4000.5,3999.6,2.50025002]
[1760552500188,2.49925568,4001.2,3999.6,2.50025002]
[1760552500189,0.22,4002.0,4000.4,0.1925]
[1760552500415,0.2199,4001.4,4000.5,0.6336]
[1760552500609,0.2199,4001.4,4000.7,2.49955976]
[1760552501131,3.17272734,4001.4,4000.6,0.6336]
[1760552501432,0.6736,4001.4,4000.7,0.6336]
[1760552501939,3.17272545,4001.4,4000.7,0.6336]
[1760552502099,3.17272545,4001.4,4000.7,2.49954281]
[1760552502294,0.22,4002.0,4000.7,2.49954281]
[1760552502295,0.2199,4001.9,4001.0,2.49937323]
[1760552502514,2.49889243,4001.8,4001.0,2.49937323]
[1760552502733,2.49894509,4001.7,4000.9,2.49942185]
[1760552503232,0.2199,4001.9,4001.0,2.49937092]
[1760552503431,3.09924632,4001.3,4000.6,0.6336]
[1760552503612,1.0537,4001.3,4000.7,2.49956167]
[1760552503811,1.0537,4001.3,4000.7,0.6336]
[1760552504220,0.6,4001.3,4000.7,2.49951977]
[1760552504426,0.6,4001.3,4000.6,3.13320599]
[1760552504630,0.6,4001.3,4001.0,0.1248]
[1760552504938,2.49926485,4001.2,4001.0,0.1248]
[1760552505247,0.6,4001.3,4001.0,0.1248]
[1760552505248,2.95301268,4001.1,4001.0,0.1248]
[1760552505399,0.4537,4001.1,4000.6,0.1248]
[1760552505600,0.22,4000.7,4000.0,1.8963]
[1760552505803,2.49967139,4000.6,4000.2,0.1248]
[1760552506051,0.4425,4001.0,4000.4,10.35998397]
[1760552506203,0.6,4001.3,4000.5,1.0484784]
[1760552506204,3.09919215,4001.3,4000.5,1.0484784]
[1760552506404,0.6,4001.3,4000.3,0.1925]
[1760552506725,0.6,4001.3,3999.9,0.6336]
[1760552506726,2.49939353,4001.0,3999.9,0.6336]
[1760552506938,2.49960774,4000.7,4000.1,0.6336]
[1760552507409,0.6649,4000.9,4000.0,0.6336]
[1760552507616,3.16434117,4000.9,4000.2,2.49985501]
[1760552508738,2.4995013,4000.8,4000.1,2.69242534]
[1760552508952,0.2089,4000.9,4000.2,2.49987038]
[1760552509118,0.2089,4000.9,4000.1,0.71175426]
[1760552509119,0.6,4001.3,4000.4,0.6336]
[1760552509447,2.49930485,4001.2,4000.3,0.4408]
[1760552509648,0.4535,4001.1,4000.2,2.3616]
[1760552509819,0.4535,4001.1,4000.1,0.71175426]
[1760552510151,2.4995661,4000.7,4000.1,1.728]
[1760552510329,0.2113,4000.6,4000.1,1.728]
[1760552511051,3.16207452,4000.6,3999.9,2.3616]
[1760552511343,2.49975002,4000.4,3999.6,0.73622251]
[1760552511644,2.49975002,4000.4,3999.4,0.1683]
[1760552511645,2.49988953,4000.2,3999.5,0.6336]
[1760552511823,2.49988953,4000.2,3999.5,2.3616]
[1760552512026,0.4511,4000.5,3999.5,0.6336]
[1760552512226,0.2199,4001.9,4000.4,0.1925]
[1760552512533,0.2199,4001.9,4000.5,0.65859687]
[1760552512738,2.49892288,4001.8,4000.6,0.25790969]
[1760552513043,2.49901171,4001.6,4000.6,0.25790969]
[1760552513257,2.49913374,4001.4,4000.6,2.75748166]
[1760552513413,2.49917383,4001.4,4000.6,2.75748166]
[1760552513740,2.94788295,4001.5,4000.8,2.49949381]
[1760552513941,2.49887621,4001.8,4000.6,2.75753376]
[1760552514123,2.49912412,4001.5,4000.7,2.49956257]
[1760552514322,2.49912412,4001.5,4000.8,2.83859973]
[1760552515147,0.2225,4000.9,4000.1,0.1925]
[1760552515353,0.2225,4000.9,4000.2,1.728]
[1760552515556,2.72195757,4000.9,4000.2,4.22787298]
[1760552515763,0.2225,4000.9,4000.1,4.42042199]
[1760552516057,2.49950074,4000.8,4000.1,2.69242628]
[1760552516256,2.84675869,4000.9,4000.3,0.1248]
[1760552516458,0.3473,4000.9,4000.3,0.1248]
[1760552516673,2.84674585,4000.9,4000.3,0.1248]
[1760552516970,2.49951058,4000.8,4000.3,0.1248]
[1760552517340,0.3473,4000.9,4000.2,2.49986732]
[1760552517341,2.7219564,4000.9,4000.2,2.49986732]
[1760552517960,0.3,4001.4,4000.2,0.6920425]
[1760552518159,0.4379,4001.2,3999.6,10.35998397]
[1760552518377,0.3,4001.4,3999.8,2.3616]
[1760552518378,0.4379,4001.1,3999.8,2.3616]
[1760552518539,0.4379,4001.1,4000.3,2.49976989]
[1760552518868,0.3,4001.4,4000.4,3.13333606]
[1760552519073,0.3,4001.4,4000.6,2.49962505]
[1760552519280,0.3,4001.4,4000.2,2.69233327]
[1760552519281,0.3,4001.4,4000.7,0.74282251]
[1760552519575,0.3,4001.4,4001.0,2.49936461]
[1760552519747,0.3,4001.4,4001.0,2.49937515]
[1760552519949,0.3,4001.4,4001.0,5.0663695]
[1760552520173,0.3,4001.4,4000.8,3.13308759]
[1760552520343,0.3,4001.4,4000.7,0.6336]
[1760552520547,0.3,4001.4,4000.9,2.567]
[1760552520974,0.3,4001.4,4001.0,2.49931457]
[1760552521358,0.3,4001.4,4001.0,5.06531457]
[1760552521553,0.3,4001.4,4001.0,2.49931457]
[1760552521754,0.3,4001.4,4001.0,5.06531457]
[1760552521959,0.3,4001.4,4000.3,2.1929]
[1760552522185,0.4379,4001.2,4000.3,1.2745384]
[1760552522365,2.93716711,4001.2,4000.4,2.49970655]
[1760552522685,2.93716354,4001.2,4000.4,2.49974122]
[1760552523281,2.49931963,4001.1,4000.4,2.49974122]
[1760552523577,0.6,4001.3,4000.5,2.49968041]
[1760552523778,0.6,4001.3,4000.3,2.566]
[1760552523980,0.6,4001.3,4000.5,2.49968753]
[1760552524147,0.6,4001.3,4000.6,2.49962505]
[1760552524345,0.6,4001.3,4000.6,5.06562505]
[1760552524656,0.6,4001.3,4000.9,2.49941963]
[1760552525486,0.6,4001.3,4001.0,2.4993593]
[1760552525688,0.6,4001.3,4001.1,0.1683]
[1760552525851,0.6,4001.3,4001.2,2.49925022]
[1760552526580,0.6,4001.3,4001.1,2.4992967]
[1760552527089,0.6,4001.3,4001.1,2.4992956]
[1760552527292,0.6,4001.3,4000.9,2.564]
[1760552527494,0.4379,4001.2,4000.7,2.564]
[1760552527692,0.4379,4001.2,4000.4,0.6336]
[1760552527866,0.4379,4001.2,4000.8,0.1248]
[1760552528201,0.02502517,4001.1,3999.4,0.1683]
[1760552528359,2.62431209,4000.8,4000.2,0.1248]
[1760552528559,2.62431209,4000.8,4000.3,2.49981251]
[1760552528560,0.1248,4000.8,4000.3,2.49981251]
[1760552528894,0.6,4001.3,4000.6,0.6336]
[1760552529062,0.6,4001.3,4000.4,2.64741125]
[1760552529063,0.6,4001.3,4000.9,0.6336]
[1760552529258,0.6,4001.3,4001.2,2.49925022]
[1760552529981,0.6,4001.3,4000.8,0.6336]
[1760552530338,0.6,4001.3,4001.2,2.49925022]
[1760552530667,0.6,4001.3,4000.8,3.2006]
[1760552530668,0.6,4001.3,4000.9,1.728]
[1760552530862,0.6,4001.3,4000.8,0.6336]
[1760552531063,0.6,4001.3,4001.2,2.49925022]
[1760552531263,0.6,4001.3,4001.2,6.78276774]
[1760552531476,0.6,4001.3,4001.2,5.91677524]
[1760552531886,0.6,4001.3,4001.2,4.64997524]
[1760552532097,0.6,4001.3,4001.2,6.79625022]
[1760552532403,0.6,4001.3,4001.2,5.32575022]
[1760552533575,0.601,4001.3,4001.2,5.32575022]
[1760552533911,0.601,4001.3,4001.2,7.89575022]
[1760552534118,0.601,4001.3,4001.2,5.32575022]
[1760552534323,0.601,4001.3,4001.2,1.728]
[1760552534512,0.601,4001.3,4001.0,2.49934527]
[1760552534711,0.601,4001.3,4000.8,2.49949754]
[1760552534886,1.0026,4001.3,4000.9,2.49942999]
[1760552535218,1.0026,4001.3,4000.8,1.728]
[1760552535219,0.601,4001.3,4001.1,2.49930432]
[1760552535420,0.601,4001.3,4000.9,2.49941646]
[1760552535622,0.601,4001.3,4001.2,2.49925022]
[1760552538244,0.601,4001.3,4000.6,2.1929]
[1760552538520,0.601,4001.3,4001.2,2.49925022]
[1760552541291,0.601,4001.3,4001.1,0.1248]
[1760552541494,0.601,4001.3,4001.2,4.39555022]
[1760552541700,0.601,4001.3,4001.2,3.82233805]
[1760552541900,0.601,4001.3,4001.2,5.98673805]
[1760552543252,0.601,4001.3,4001.2,5.55033805]